bitfinex/quotes_BTCUSD_20240715
["timestamp","ask_amount","ask_price","bid_price","bid_amount"]
[1721018746713,0.03539526,62646.0,62645.0,0.014]
[1721018746961,0.03639526,62646.0,62645.0,0.021]
[1721018747916,0.10770407,62646.0,62645.0,0.451999]
[1721018748117,0.03639526,62646.0,62645.0,0.795799]
[1721018748323,0.03639526,62646.0,62645.0,1.106132]
[1721018748504,0.08396005,62646.0,62645.0,1.106132]
[1721018748711,0.08396005,62646.0,62645.0,0.650299]
[1721018749080,0.08396005,62646.0,62645.0,0.818799]
[1721018749268,0.08396005,62646.0,62645.0,0.718799]
[1721018749418,0.08396005,62646.0,62645.0,0.550299]
[1721018749605,0.08391651,62646.0,62645.0,0.550299]
[1721018749813,0.08391651,62646.0,62645.0,0.718799]
[1721018750250,0.08391651,62646.0,62645.0,0.0963]
[1721018750670,0.03635858,62646.0,62645.0,0.0963]
[1721018752877,0.001,62646.0,62645.0,0.0963]
[1721018753077,0.03941674,62646.0,62645.0,0.0963]
[1721018753233,0.00406353,62646.0,62645.0,0.0963]
[1721018753439,0.11076192,62646.0,62645.0,0.0963]
[1721018753653,0.10769839,62646.0,62645.0,0.0963]
[1721018753852,0.03634172,62646.0,62645.0,0.0963]
[1721018755145,0.03634172,62646.0,62645.0,1.101232]
[1721018755346,0.03634172,62646.0,62645.0,1.12578626]
[1721018755547,0.03628778,62646.0,62645.0,1.12578626]
[1721018755675,0.03628778,62646.0,62645.0,1.124232]
[1721018755876,0.08386205,62646.0,62645.0,1.124232]
[1721018756081,0.0362468,62646.0,62645.0,1.006132]
[1721018756277,0.0362468,62646.0,62645.0,0.983132]
[1721018757983,0.0362468,62646.0,62645.0,1.106132]
[1721018758887,0.0362468,62646.0,62645.0,1.41311926]
[1721018759461,0.001,62646.0,62645.0,1.41311926]
[1721018759588,0.03591045,62646.0,62645.0,1.41311926]
[1721018760417,0.03591045,62646.0,62645.0,1.411565]
[1721018760736,0.03591045,62646.0,62645.0,1.70045226]
[1721018760987,0.03591045,62646.0,62645.0,1.80045226]
[1721018762044,0.001,62646.0,62645.0,1.80045226]
[1721018762442,0.03539963,62646.0,62645.0,1.80045226]
[1721018763119,0.03539963,62646.0,62645.0,1.51311926]
[1721018764369,0.001,62646.0,62645.0,1.51311926]
[1721018765473,0.001,62646.0,62645.0,1.80045226]
[1721018765678,0.03562471,62646.0,62645.0,1.80045226]
[1721018766456,0.03562471,62646.0,62645.0,1.70045226]
[1721018766657,0.03562471,62646.0,62645.0,1.80045226]
[1721018768515,0.03562471,62646.0,62645.0,1.90045226]
[1721018768950,0.001,62646.0,62645.0,1.90045226]
[1721018769612,0.00083,62656.0,62645.0,1.90045226]
[1721018769613,0.00083,62656.0,62655.0,1.58807126]
[1721018769811,0.00083,62656.0,62655.0,1.71007126]
[1721018770010,0.00083,62656.0,62655.0,2.09735826]
[1721018770255,0.00083,62656.0,62655.0,1.596804]
[1721018770452,0.00083,62656.0,62655.0,2.096804]
[1721018770973,0.00283,62656.0,62655.0,2.123804]
[1721018771193,0.00283,62656.0,62655.0,2.398091]
[1721018771536,0.00383,62656.0,62655.0,2.411091]
[1721018772203,0.00383,62656.0,62655.0,2.730301]
[1721018772535,0.00083,62656.0,62655.0,2.703301]
[1721018772729,0.00083,62656.0,62655.0,2.717301]
[1721018773132,0.225793,62677.0,62655.0,2.717301]
[1721018773133,0.00306353,62675.0,62674.0,0.8436]
[1721018773336,0.03616916,62675.0,62674.0,1.98651]
[1721018773447,0.00306353,62675.0,62674.0,2.39671]
[1721018773653,0.0655,62682.0,62681.0,0.142584]
[1721018773854,0.09863338,62682.0,62681.0,0.14577422]
[1721018774089,0.09863338,62682.0,62681.0,0.698252]
[1721018774291,0.09863338,62682.0,62681.0,0.721252]
[1721018774494,0.09863338,62682.0,62681.0,0.1685]
[1721018775101,0.09963338,62682.0,62681.0,0.1805]
[1721018775302,0.09963338,62682.0,62681.0,0.012]
[1721018775699,0.09935401,62682.0,62681.0,0.155584]
[1721018775897,0.09935401,62682.0,62681.0,0.161584]
[1721018776076,0.73009801,62682.0,62681.0,0.018]
[1721018776280,1.10672514,62682.0,62681.0,0.018]
[1721018776546,0.73009801,62682.0,62681.0,0.018]
[1721018776709,0.53009801,62682.0,62681.0,0.018]
[1721018777326,0.73009801,62682.0,62681.0,0.018]
[1721018777533,0.09935401,62682.0,62681.0,0.018]
[1721018777736,0.09935401,62682.0,62681.0,0.161584]
[1721018778114,0.09935401,62682.0,62681.0,0.018]
[1721018779104,0.09956939,62682.0,62681.0,0.018]
[1721018779271,0.09956939,62682.0,62681.0,0.02890088]
[1721018780651,0.09956939,62682.0,62681.0,0.45965288]
[1721018781420,0.001,62682.0,62681.0,1.98028888]
[1721018781537,0.001,62682.0,62681.0,2.48633288]
[1721018782231,0.001,62682.0,62681.0,2.77350088]
[1721018782432,0.001,62682.0,62681.0,2.48633288]
[1721018782695,0.001,62682.0,62681.0,2.48033288]
[1721018783158,0.001,62682.0,62681.0,2.49333288]
[1721018783511,0.00834,62692.0,62691.0,1.486305]
[1721018783714,0.00834,62692.0,62691.0,1.51985064]
[1721018784134,0.00834,62692.0,62691.0,1.83888064]
[1721018784712,0.00834,62692.0,62691.0,1.85088064]
[1721018784912,0.00834,62692.0,62691.0,1.86488064]
[1721018785351,0.00834,62692.0,62691.0,1.94548064]
[1721018785659,0.00834,62692.0,62691.0,1.934935]
[1721018785861,0.00834,62692.0,62691.0,1.86484117]
[1721018786063,0.00834,62692.0,62691.0,1.57771917]
[1721018786222,0.00834,62692.0,62691.0,1.86484117]
[1721018786419,0.00834,62692.0,62691.0,2.15196317]
[1721018787232,0.00834,62692.0,62691.0,1.86484117]
[1721018789143,0.00334,62692.0,62691.0,1.86484117]
[1721018790330,0.00334,62692.0,62691.0,1.87442185]
[1721018791114,0.00334,62692.0,62691.0,1.86391568]
[1721018791551,0.0365625,62698.0,62696.0,0.143548]
[1721018791754,0.2,62722.0,62696.0,0.143548]
[1721018791755,0.00833,62709.0,62707.0,1.486122]
[1721018791879,0.00833,62709.0,62707.0,0.54694]
[1721018792084,0.08814,62708.0,62707.0,0.31894]
[1721018792281,0.08814,62708.0,62707.0,0.32623094]
[1721018793151,0.397287,62708.0,62707.0,0.32623094]
[1721018793351,0.28561978,62708.0,62707.0,0.32623094]
[1721018793688,0.28561978,62708.0,62707.0,0.33723094]
[1721018793890,0.28561978,62708.0,62707.0,0.35123094]
[1721018794323,0.11999478,62708.0,62707.0,0.32623094]
[1721018794867,0.18319478,62708.0,62707.0,0.34323094]
[1721018795036,0.18319478,62708.0,62707.0,0.33223094]
[1721018795252,0.18335231,62708.0,62707.0,0.33823094]
[1721018795643,0.18335231,62708.0,62707.0,0.33223094]
[1721018796050,0.58196344,62708.0,62707.0,0.32623094]
[1721018796425,0.58196344,62708.0,62707.0,0.32723094]
[1721018796629,0.43844144,62708.0,62707.0,0.32723094]
[1721018796832,0.43844144,62708.0,62707.0,0.32623094]
[1721018797372,0.34897731,62708.0,62707.0,0.32723094]
[1721018797894,0.34897731,62708.0,62707.0,0.33323094]
[1721018798024,0.34897731,62708.0,62707.0,0.32723094]
[1721018798471,0.15134,62708.0,62707.0,0.33323094]
[1721018798644,0.18351559,62708.0,62707.0,0.33323094]
[1721018798841,0.18351559,62708.0,62707.0,0.32723094]
[1721018798842,0.15134,62708.0,62707.0,0.32723094]
[1721018799086,0.15134,62708.0,62707.0,0.47575494]
[1721018799418,0.18366996,62708.0,62707.0,0.47675494]
[1721018799617,0.18366996,62708.0,62707.0,0.33323094]
[1721018799788,0.18366996,62708.0,62707.0,0.33223094]
[1721018800170,0.15134,62708.0,62707.0,0.33823094]
[1721018800532,0.18397128,62708.0,62707.0,0.48175494]
[1721018800736,0.15134,62708.0,62707.0,0.47575494]
[1721018800933,0.43906088,62708.0,62707.0,0.33323094]
[1721018801356,0.43906088,62708.0,62707.0,0.34523094]
[1721018801557,0.43906088,62708.0,62707.0,0.33323094]
[1721018801799,0.43913054,62708.0,62707.0,0.33323094]
[1721018802060,0.43913054,62708.0,62707.0,0.34623094]
[1721018802339,0.43913054,62708.0,62707.0,0.32594]
[1721018802580,0.43913054,62708.0,62707.0,0.33894]
[1721018802786,0.58265254,62708.0,62707.0,0.33194]
[1721018802986,0.58265254,62708.0,62707.0,0.31894]
[1721018803197,0.58265254,62708.0,62707.0,0.32594]
[1721018803544,0.58265254,62708.0,62707.0,0.31894]
[1721018804499,0.58265254,62708.0,62707.0,0.32094]
[1721018804829,0.58265254,62708.0,62707.0,0.32894]
[1721018805257,0.58296948,62708.0,62707.0,0.32094]
[1721018805736,0.58296948,62708.0,62707.0,0.31894]
[1721018805737,0.43944748,62708.0,62707.0,0.31894]
[1721018805930,0.34998335,62708.0,62707.0,0.31894]
[1721018806140,0.34998335,62708.0,62707.0,0.32794]
[1721018806355,0.18435835,62708.0,62707.0,0.463464]
[1721018806622,0.18435835,62708.0,62707.0,0.749513]
[1721018806821,0.18435835,62708.0,62707.0,0.756513]
[1721018807028,0.34998335,62708.0,62707.0,0.470464]
[1721018807184,0.34998335,62708.0,62707.0,0.757513]
[1721018807382,0.34998335,62708.0,62707.0,0.756513]
[1721018807765,0.18435835,62708.0,62707.0,0.761513]
[1721018807988,0.18435835,62708.0,62707.0,1.041562]
[1721018808188,0.18435835,62708.0,62707.0,1.04897367]
[1721018808435,0.15134,62708.0,62707.0,1.04897367]
[1721018808605,0.15134,62708.0,62707.0,1.05144995]
[1721018808606,0.1843622,62708.0,62707.0,1.05144995]
[1721018808952,0.18447253,62708.0,62707.0,1.06244995]
[1721018811141,0.10147253,62708.0,62707.0,1.34949895]
[1721018811288,0.04147253,62708.0,62707.0,1.34949895]
[1721018811742,0.00834,62708.0,62707.0,1.34949895]
[1721018812074,0.04132526,62708.0,62707.0,1.34949895]
[1721018813643,0.04132526,62708.0,62707.0,1.40949895]
[1721018814188,0.04132526,62708.0,62707.0,1.34949895]
[1721018814426,0.00834,62708.0,62707.0,1.34949895]
[1721018815006,0.0411333,62708.0,62707.0,1.34949895]
[1721018815144,0.00814804,62708.0,62707.0,1.34949895]
[1721018815344,0.11110474,62708.0,62707.0,1.34949895]
[1721018816290,0.11110474,62708.0,62707.0,1.34208728]
[1721018816502,0.11110474,62708.0,62707.0,1.339611]
[1721018818439,0.11115605,62708.0,62707.0,1.339611]
[1721018818825,0.11115539,62708.0,62707.0,1.339611]
[1721018820543,0.15864856,62708.0,62707.0,1.339611]
[1721018820970,0.00814804,62708.0,62707.0,1.339611]
[1721018821266,0.08992011,62708.0,62707.0,1.339611]
[1721018821489,0.22433472,62708.0,62707.0,1.339611]
[1721018821658,0.24809473,62708.0,62707.0,1.339611]
[1721018822253,0.27185473,62708.0,62707.0,1.339611]
[1721018823238,0.17681472,62708.0,62707.0,1.339611]
[1721018823676,0.17681472,62708.0,62707.0,1.480611]
[1721018823677,0.11271472,62708.0,62707.0,1.480611]
[1721018824132,0.00814804,62708.0,62707.0,1.420411]
[1721018824350,0.00814804,62708.0,62707.0,1.910335]
[1721018824351,0.1620322,62708.0,62707.0,1.910335]
[1721018824519,0.18553086,62708.0,62707.0,2.520384]
[1721018824674,0.11417408,62708.0,62707.0,2.580584]
[1721018824878,0.16174743,62708.0,62707.0,2.580584]
[1721018825096,0.16174743,62708.0,62707.0,2.575584]
[1721018825311,0.11417408,62708.0,62707.0,2.564584]
[1721018825511,0.1617625,62708.0,62707.0,2.569584]
[1721018825721,0.1617625,62708.0,62707.0,2.583584]
[1721018825923,0.1617625,62708.0,62707.0,2.569584]
[1721018826126,0.1617625,62708.0,62707.0,2.564584]
[1721018826386,0.18553086,62708.0,62707.0,2.592584]
[1721018826924,0.18553086,62708.0,62707.0,2.820584]
[1721018827483,0.21118485,62708.0,62707.0,2.820584]
[1721018828479,0.21118485,62708.0,62707.0,3.107633]
[1721018828480,0.1159201,62708.0,62707.0,3.107633]
[1721018828640,0.07978004,62709.0,62708.0,2.626917]
[1721018828839,0.00833,62709.0,62708.0,3.068857]
[1721018829065,0.00833,62709.0,62708.0,3.355901]
[1721018829066,0.05596468,62709.0,62708.0,3.355901]
[1721018829263,0.07145004,62711.0,62710.0,2.268602]
[1721018829481,0.00834,62712.0,62711.0,0.83342]
[1721018829683,0.00834,62712.0,62711.0,1.62064]
[1721018829902,0.00834,62712.0,62711.0,2.76876]
[1721018830566,0.00834,62712.0,62711.0,3.06876]
[1721018831289,0.00834,62712.0,62711.0,3.35579]
[1721018831837,0.00834,62712.0,62711.0,3.36979]
[1721018832248,0.00834,62712.0,62711.0,3.38379]
[1721018832746,0.00834,62712.0,62711.0,3.35579]
[1721018832959,0.00834,62713.0,62712.0,2.268544]
[1721018833160,0.00834,62714.0,62712.0,2.268544]
[1721018833161,0.00834,62715.0,62714.0,0.402875]
[1721018833376,0.00834,62715.0,62714.0,1.682227]
[1721018833577,0.00834,62715.0,62714.0,2.566278]
[1721018833979,0.14295217,62724.0,62714.0,2.566278]
[1721018833980,0.14295217,62724.0,62716.0,0.143504]
[1721018834156,0.173965,62745.0,62720.0,1.058053]
[1721018834157,0.11914914,62721.0,62720.0,1.058053]
[1721018834358,0.14295217,62726.0,62725.0,1.164824]
[1721018834542,0.06840687,62726.0,62725.0,2.529272]
[1721018834926,0.06840687,62726.0,62725.0,2.897438]
[1721018835599,0.06840687,62726.0,62725.0,2.911438]
[1721018835954,0.06840687,62726.0,62725.0,2.925438]
[1721018837101,0.0829,62738.0,62728.0,0.277851]
[1721018837280,0.21390116,62729.0,62728.0,2.05764362]
[1721018837481,0.21390116,62729.0,62728.0,3.08669662]
[1721018837482,0.07094132,62729.0,62728.0,3.08669662]
[1721018838212,8.7e-07,62729.0,62728.0,3.08669662]
[1721018838415,0.00834,62745.0,62742.0,0.902875]
[1721018838416,0.16084021,62743.0,62742.0,0.902875]
[1721018838573,0.16918021,62745.0,62744.0,0.909395]
[1721018838779,0.16918021,62745.0,62744.0,1.901915]
[1721018838979,0.20140005,62745.0,62744.0,1.924915]
[1721018839208,0.20140005,62745.0,62744.0,2.498675]
[1721018839209,0.04055984,62745.0,62744.0,2.498675]
[1721018839379,0.04055984,62745.0,62744.0,2.043295]
[1721018839805,0.04055984,62745.0,62744.0,1.83272]
[1721018840162,0.04055984,62745.0,62744.0,2.367095]
[1721018840389,0.00834,62745.0,62744.0,2.33272]
[1721018840574,0.03196692,62745.0,62744.0,1.44584]
[1721018840778,0.0981667,62745.0,62744.0,1.03596]
[1721018840994,0.1791667,62745.0,62744.0,0.74908]
[1721018841203,0.1791667,62745.0,62744.0,0.76308]
[1721018841354,0.1791667,62745.0,62744.0,1.06396]
[1721018841550,0.1791667,62745.0,62744.0,1.04996]
[1721018841759,0.1791667,62745.0,62744.0,1.03596]
[1721018841961,0.1791667,62745.0,62744.0,1.04996]
[1721018842188,0.1791667,62745.0,62744.0,1.06396]
[1721018842351,0.1791667,62745.0,62744.0,1.04996]
[1721018842791,0.1791667,62745.0,62744.0,1.03596]
[1721018842990,0.43425583,62745.0,62744.0,0.31876]
[1721018843223,0.43425583,62745.0,62744.0,0.33276]
[1721018843417,0.43425583,62745.0,62744.0,0.4762]
[1721018843626,0.43494949,62745.0,62744.0,0.4762]
[1721018843972,0.43494949,62745.0,62744.0,0.33276]
[1721018844181,0.43494949,62745.0,62744.0,0.34576]
[1721018844401,1.15213649,62745.0,62744.0,0.34576]
[1721018844618,0.86526149,62745.0,62744.0,0.33276]
[1721018845040,0.86526149,62745.0,62744.0,0.33176]
[1721018845572,0.86526149,62745.0,62744.0,0.33276]
[1721018845737,0.86526149,62745.0,62744.0,0.32876]
[1721018845951,0.86526149,62745.0,62744.0,0.34276]
[1721018846376,0.92611125,62745.0,62744.0,0.34276]
[1721018846700,1.27298625,62745.0,62744.0,0.34276]
[1721018846845,0.92604688,62745.0,62744.0,0.32876]
[1721018847045,0.92604688,62745.0,62744.0,0.33876]
[1721018847262,0.92604688,62745.0,62744.0,0.32876]
[1721018847666,0.92604688,62745.0,62744.0,0.33376]
[1721018848507,0.92604688,62745.0,62744.0,0.32376]
[1721018849447,0.92604688,62745.0,62744.0,0.33376]
[1721018849809,0.92604688,62745.0,62744.0,0.32376]
[1721018850016,0.92604688,62745.0,62744.0,0.33376]
[1721018850219,0.84094113,62745.0,62744.0,0.33376]
[1721018850419,0.92566492,62745.0,62744.0,0.32376]
[1721018850975,1.27253992,62745.0,62744.0,0.32376]
[1721018851177,1.27253992,62745.0,62744.0,0.31876]
[1721018851536,1.27253992,62745.0,62744.0,0.32276]
[1721018851784,1.55941492,62745.0,62744.0,0.32276]
[1721018851989,1.55941492,62745.0,62744.0,0.26516]
[1721018852239,1.31932613,62734.0,62733.0,0.4771]
[1721018852408,1.53754992,62734.0,62733.0,0.4771]
[1721018853191,1.53754992,62734.0,62719.0,0.063935]
[1721018853192,0.39858313,62720.0,62719.0,0.063935]
[1721018853392,0.83450085,62720.0,62719.0,0.063935]
[1721018853593,0.309134,62714.0,62709.0,0.143519]
[1721018853808,0.07139307,62710.0,62703.0,0.287065]
[1721018853962,0.07139307,62710.0,62709.0,1.00464]
[1721018854161,0.15592063,62710.0,62709.0,1.00464]
[1721018854565,0.15592063,62710.0,62709.0,0.7176]
[1721018854808,0.08452756,62710.0,62709.0,0.7176]
[1721018855397,0.15590049,62710.0,62709.0,0.7176]
[1721018855596,0.15590049,62710.0,62709.0,0.7316]
[1721018856129,0.15590049,62710.0,62709.0,0.7176]
[1721018856328,0.15708287,62710.0,62709.0,0.7316]
[1721018856671,0.15708287,62710.0,62704.0,0.063942]
[1721018856672,0.166625,62710.0,62705.0,0.287057]
[1721018856788,0.166625,62710.0,62700.0,0.000913]
[1721018856789,0.04758366,62706.0,62700.0,0.000913]
[1721018856995,0.04758366,62706.0,62704.0,0.143531]
[1721018856996,0.0240658,62705.0,62704.0,0.143531]
[1721018857195,0.0240658,62705.0,62704.0,0.207481]
[1721018857395,0.0240658,62705.0,62704.0,0.494544]
[1721018857834,0.0240658,62705.0,62704.0,0.207481]
[1721018858350,0.0240658,62705.0,62704.0,1.07185943]
[1721018858696,0.002,62706.0,62705.0,0.143529]
[1721018858898,0.002,62706.0,62705.0,0.717645]
[1721018858899,0.02593859,62706.0,62705.0,0.717645]
[1721018859123,0.02593859,62706.0,62705.0,0.430587]
[1721018859124,0.07352225,62706.0,62705.0,0.430587]
[1721018859330,0.07252225,62706.0,62705.0,0.716645]
[1721018859692,0.02700212,62706.0,62705.0,0.715645]
[1721018859915,0.02728522,62706.0,62705.0,0.715645]
[1721018860090,0.28031082,62706.0,62705.0,0.014]
[1721018860234,0.25508913,62705.0,62704.0,0.06395]
[1721018860439,0.34451082,62705.0,62704.0,0.06395]
[1721018860641,0.48803982,62705.0,62704.0,0.06395]
[1721018860846,0.165625,62702.0,62700.0,0.000913]
[1721018861047,0.02422169,62701.0,62700.0,0.000913]
[1721018861666,0.02422169,62702.0,62700.0,0.064866]
[1721018862301,0.39862713,62701.0,62700.0,0.000913]
[1721018862503,0.39862713,62701.0,62700.0,0.014913]
[1721018862504,0.42384882,62701.0,62700.0,0.014913]
[1721018862705,1.41027682,62701.0,62700.0,0.000913]
[1721018863037,0.39865213,62690.0,62689.0,0.4771]
[1721018863239,0.42298042,62690.0,62687.0,0.063968]
[1721018863443,0.25508913,62688.0,62685.0,0.143574]
[1721018863645,0.165625,62686.0,62685.0,0.143574]
[1721018863792,0.165625,62686.0,62685.0,0.207542]
[1721018863999,0.27979872,62686.0,62685.0,0.207542]
[1721018864339,0.50277072,62686.0,62685.0,0.063968]
[1721018864495,0.165625,62682.0,62679.0,0.143587]
[1721018864704,0.02470959,62682.0,62679.0,0.143587]
[1721018864902,0.02470959,62682.0,62677.0,0.4771]
[1721018864903,0.27979872,62682.0,62677.0,0.4771]
[1721018865106,0.02470959,62682.0,62681.0,0.064885]
[1721018865304,0.02470959,62682.0,62681.0,0.000913]
[1721018865712,0.19033459,62682.0,62681.0,0.008913]
[1721018865913,0.19133459,62682.0,62681.0,0.008913]
[1721018866167,0.02644562,62682.0,62681.0,0.008913]
[1721018866883,0.02644562,62682.0,62681.0,0.296081]
[1721018867029,0.02644562,62682.0,62681.0,0.726833]
[1721018867234,0.001,62682.0,62681.0,0.726833]
[1721018872632,0.001,62682.0,62681.0,0.439665]
[1721018872769,0.001,62682.0,62681.0,0.805633]
[1721018872952,0.05045993,62709.0,62696.0,0.034375]
[1721018873157,0.00306353,62708.0,62700.0,0.73967338]
[1721018873455,0.165625,62712.0,62700.0,1.31383538]
[1721018873842,0.00306353,62711.0,62700.0,1.31383538]
[1721018873997,0.00306353,62711.0,62700.0,1.32154866]
[1721018874205,0.00080818,62701.0,62700.0,1.70862966]
[1721018874392,0.00080818,62701.0,62700.0,1.73162966]
[1721018875957,0.00080818,62701.0,62700.0,1.44454866]
[1721018876368,0.00180818,62701.0,62700.0,1.49292366]
[1721018876548,0.00180818,62701.0,62700.0,0.76241528]
[1721018876741,0.00180818,62701.0,62700.0,0.45233428]
[1721018876968,0.00180818,62701.0,62700.0,0.444621]
[1721018877334,0.40043531,62701.0,62700.0,0.014]
[1721018877563,0.165625,62695.0,62690.0,0.287126]
[1721018877760,0.165625,62692.0,62691.0,0.143561]
[1721018877960,0.19338846,62692.0,62691.0,0.430683]
[1721018878185,0.19338846,62692.0,62688.0,0.143567]
[1721018878186,0.165625,62690.0,62688.0,0.143567]
[1721018878366,0.02776346,62690.0,62688.0,0.143567]
[1721018878562,0.165625,62692.0,62690.0,0.143563]
[1721018878766,0.02876653,62691.0,62690.0,0.157563]
[1721018879175,0.28385566,62691.0,62690.0,0.014]
[1721018879371,0.02876653,62691.0,62688.0,0.143567]
[1721018879581,0.02876653,62691.0,62689.0,0.620665]
[1721018879774,0.02876653,62691.0,62689.0,0.014]
[1721018879775,0.25608913,62690.0,62689.0,0.014]
[1721018880022,0.71554566,62690.0,62689.0,0.014]
[1721018880482,0.42841866,62690.0,62689.0,0.014]
[1721018881258,0.42893405,62690.0,62689.0,0.014]
[1721018881500,1.00318805,62690.0,62689.0,0.014]
[1721018881701,1.06318805,62690.0,62689.0,0.014]
[1721018882050,1.06318805,62690.0,62681.0,0.000913]
[1721018882051,0.143581,62682.0,62681.0,0.000913]
[1721018882251,0.42795205,62682.0,62681.0,0.000913]
[1721018882456,0.71511505,62682.0,62681.0,0.000913]
[1721018882629,1.14197805,62682.0,62681.0,0.000913]
[1721018883308,0.77821505,62682.0,62681.0,0.000913]
[1721018883457,1.06537805,62682.0,62681.0,0.000913]
[1721018883657,1.1905202,62682.0,62681.0,0.000913]
[1721018883866,1.2905202,62682.0,62681.0,0.000913]
[1721018884067,1.5176832,62682.0,62681.0,0.000913]
[1721018884278,1.27577302,62682.0,62681.0,0.000913]
[1721018884450,1.16537805,62682.0,62681.0,0.000913]
[1721018884647,1.16537805,62682.0,62681.0,0.013913]
[1721018884852,1.16637805,62682.0,62681.0,0.013913]
[1721018885617,1.51254105,62682.0,62681.0,0.000913]
[1721018885827,1.57779588,62682.0,62681.0,0.000913]
[1721018885956,1.57778556,62682.0,62681.0,0.000913]
[1721018886160,1.22537805,62682.0,62681.0,0.000913]
[1721018886360,1.22537805,62682.0,62681.0,0.010913]
[1721018886361,1.22637805,62682.0,62681.0,0.010913]
[1721018886565,1.71277886,62682.0,62681.0,0.010913]
[1721018886771,1.71277886,62682.0,62681.0,0.01084522]
[1721018886772,1.85368362,62682.0,62681.0,0.01084522]
[1721018887174,2.18609944,62682.0,62681.0,0.01084522]
[1721018887416,1.73992921,62682.0,62681.0,0.01084522]
[1721018887592,1.65095545,62682.0,62681.0,0.01084522]
[1721018887794,1.84995545,62682.0,62681.0,0.00084522]
[1721018888003,1.84995483,62682.0,62681.0,0.00084522]
[1721018888283,2.13811783,62682.0,62681.0,0.00684522]
[1721018888477,1.65095483,62682.0,62681.0,0.00684522]
[1721018888678,1.6919476,62682.0,62681.0,0.00684522]
[1721018888885,1.65095483,62682.0,62681.0,0.00684522]
[1721018889351,2.13811783,62682.0,62681.0,0.00684522]
[1721018889598,2.2791106,62682.0,62681.0,0.00684522]
[1721018890431,2.23811783,62682.0,62681.0,0.00684522]
[1721018890573,2.13811783,62682.0,62681.0,0.00684522]
[1721018890780,1.66066509,62682.0,62681.0,0.00684522]
[1721018891156,1.59732891,62682.0,62681.0,0.00684522]
[1721018891360,2.34660982,62682.0,62681.0,0.00684522]
[1721018891565,2.40978398,62682.0,62681.0,0.00684522]
[1721018891757,2.12262098,62682.0,62681.0,0.00684522]
[1721018892164,1.96050307,62682.0,62681.0,0.00684522]
[1721018892617,1.87031936,62682.0,62681.0,0.00684522]
[1721018892781,1.95870546,62682.0,62681.0,0.00684522]
[1721018892982,2.24586846,62682.0,62681.0,0.00684522]
[1721018893186,2.51436846,62682.0,62681.0,0.00684522]
[1721018893556,2.69948637,62682.0,62681.0,0.00684522]
[1721018894188,2.69949162,62682.0,62681.0,0.00684522]
[1721018894818,2.41437371,62682.0,62681.0,0.00684522]
[1721018894997,1.95871071,62682.0,62681.0,0.00684522]
[1721018895402,2.24587371,62682.0,62681.0,0.00684522]
[1721018895631,2.34587371,62682.0,62681.0,0.00684522]
[1721018896323,2.05871071,62682.0,62681.0,0.00684522]
[1721018897082,2.34587371,62682.0,62681.0,0.00684522]
[1721018897260,2.05871071,62682.0,62681.0,0.00684522]
[1721018897493,2.37442278,62682.0,62681.0,0.00684522]
[1721018897903,2.37445842,62682.0,62681.0,0.00684522]
[1721018898282,2.37445905,62682.0,62681.0,0.00684522]
[1721018898668,1.7591918,62682.0,62681.0,0.00684522]
[1721018898912,1.99658301,62682.0,62681.0,0.00684522]
[1721018899314,2.34617646,62682.0,62681.0,0.00684522]
[1721018899516,2.28374601,62682.0,62681.0,0.00684522]
[1721018900488,2.25748236,62682.0,62681.0,0.00684522]
[1721018900739,2.28349378,62682.0,62681.0,0.00684522]
[1721018901057,2.34561169,62682.0,62681.0,0.00684522]
[1721018901191,2.44561169,62682.0,62681.0,0.00684522]
[1721018901972,2.90127469,62682.0,62681.0,0.00684522]
[1721018902146,2.98659204,62682.0,62681.0,0.00684522]
[1721018902645,2.98659204,62682.0,62653.0,0.4771]
[1721018902646,1.03329413,62656.0,62653.0,0.4771]
[1721018902882,1.03329413,62656.0,62651.0,0.03199]
[1721018903086,1.32057613,62656.0,62651.0,0.03199]
[1721018903821,1.32157613,62656.0,62655.0,0.023163]
[1721018905242,0.97429413,62656.0,62655.0,0.023163]
[1721018905410,0.165625,62646.0,62645.0,0.18927318]
[1721018905675,0.165625,62646.0,62645.0,0.22126318]
[1721018906136,0.165625,62646.0,62645.0,0.50859618]
[1721018906311,0.165625,62648.0,62647.0,0.175652]
[1721018906652,0.25508913,62648.0,62647.0,0.143662]
[1721018906874,0.25508913,62648.0,62647.0,0.142662]
[1721018907074,0.25508913,62646.0,62645.0,0.20027218]
[1721018907275,0.25508913,62646.0,62645.0,0.05660818]
[1721018907475,0.25508913,62646.0,62645.0,0.04560818]
[1721018908083,0.68608113,62646.0,62645.0,0.04560818]
[1721018908284,0.39875513,62645.0,62644.0,0.001323]
[1721018909099,0.42206309,62645.0,62644.0,0.001323]
[1721018909302,0.39875513,62645.0,62644.0,0.001323]
[1721018912301,0.70947054,62645.0,62644.0,0.001323]
[1721018912673,0.99680354,62645.0,62644.0,0.001323]
[1721018913032,1.01351882,62645.0,62644.0,0.001323]
[1721018913573,1.0128809,62645.0,62644.0,0.001323]
[1721018914023,0.7255479,62645.0,62644.0,0.001323]
[1721018914252,0.18234028,62645.0,62644.0,0.001323]
[1721018914480,0.27180441,62645.0,62644.0,0.001323]
[1721018914724,0.27280441,62645.0,62644.0,0.001323]
[1721018915175,0.41647041,62645.0,62644.0,0.001323]
[1721018915430,0.29548177,62645.0,62644.0,0.001323]
[1721018916392,0.43914777,62645.0,62644.0,0.001323]
[1721018916965,0.43932297,62645.0,62644.0,0.001323]
[1721018917168,0.41647041,62645.0,62644.0,0.001323]
[1721018917319,0.43932188,62645.0,62644.0,0.001323]
[1721018917842,0.78665488,62645.0,62644.0,0.001323]
[1721018918069,1.01398788,62645.0,62644.0,0.001323]
[1721018918606,1.05398788,62645.0,62644.0,0.001323]
[1721018918808,1.11398788,62645.0,62644.0,0.001323]
[1721018919204,1.40132088,62645.0,62644.0,0.001323]
[1721018919990,0.76525126,62645.0,62644.0,0.001323]
[1721018920192,0.47791826,62645.0,62644.0,0.001323]
[1721018920420,0.76525126,62645.0,62644.0,0.001323]
[1721018921090,0.76525126,62645.0,62644.0,0.082923]
[1721018921091,0.33425226,62645.0,62644.0,0.082923]
[1721018921295,0.33425226,62645.0,62644.0,0.146823]
[1721018922133,0.47791826,62645.0,62644.0,0.146823]
[1721018922332,0.47791826,62645.0,62644.0,0.082923]
[1721018922543,0.76525126,62645.0,62644.0,0.001323]
[1721018923211,0.74380341,62645.0,62644.0,0.001323]